bitfinex-derivatives/quotes_SOLF0:USTF0_20250630
["timestamp","ask_amount","ask_price","bid_price","bid_amount"]
[1751315242332,6.6567,157.42,157.35,3.7028778]
[1751315243533,6.352,157.41,157.38,6.3528]
[1751315243738,84.46130537,157.47,157.39,3.7028778]
[1751315244239,6.3504,157.45,157.42,6.3514]
[1751315245131,6.3504,157.45,157.34,44.7]
[1751315245329,6.3504,157.45,157.4,3.7028778]
[1751315245924,6.3506,157.44,157.4,3.7028778]
[1751315246424,84.46130537,157.47,157.42,6.3514]
[1751315246634,6.3505,157.45,157.42,6.3514]
[1751315247135,84.46130537,157.47,157.42,6.3514]
[1751315247336,3.7028778,157.44,157.36,3.7028778]
[1751315247536,3.7028778,157.44,157.34,48.4028778]
[1751315247537,3.7028778,157.42,157.34,48.4028778]
[1751315247737,3.7028778,157.4,157.35,6.3541]
[1751315247938,3.7028778,157.4,157.34,44.7]
[1751315248641,6.3534,157.38,157.35,6.3541]
[1751315249442,6.3535,157.37,157.35,6.3541]
[1751315250338,6.3533,157.38,157.35,6.3541]
[1751315250736,3.7028778,157.4,157.34,6.3547]
[1751315251143,6.3539,157.36,157.34,6.3547]
[1751315251332,6.3539,157.36,157.33,6.3549]
[1751315255140,4.17386118,157.37,157.3,44.68]
[1751315255343,7.87673898,157.36,157.3,44.68]
[1751315255545,3.7028778,157.36,157.3,44.68]
[1751315255845,6.3549,157.34,157.31,6.3558]
[1751315256048,7.87673898,157.36,157.3,44.68]
[1751315256246,4.17386118,157.35,157.3,44.68]
[1751315256639,10.52836118,157.35,157.32,6.3553]
[1751315257246,4.17386118,157.34,157.32,6.3553]
[1751315257746,10.52866118,157.34,157.32,6.3553]
[1751315257949,6.3548,157.34,157.32,6.3553]
[1751315259349,3.7028778,157.36,157.31,6.3557]
[1751315259947,6.355,157.34,157.31,6.3557]
[1751315260347,3.7028778,157.36,157.3,44.68]
[1751315261151,6.3543,157.35,157.32,6.3553]
[1751315261650,10.2707778,157.37,157.32,6.3553]
[1751315262547,10.2707778,157.37,157.31,6.3558]
[1751315263551,6.3549,157.34,157.31,6.3558]
[1751315265052,6.3549,157.34,157.32,6.3554]
[1751315265250,6.3546,157.35,157.32,6.3554]
[1751315265751,6.3549,157.34,157.31,6.3557]
[1751315265953,3.7028778,157.35,157.3,44.68]
[1751315266152,3.7028778,157.35,157.27,9.61330475]
[1751315266453,3.7028778,157.35,157.3,6.3561]
[1751315266856,3.7028778,157.35,157.27,9.61330475]
[1751315267049,6.5679,157.37,157.26,51.1961]
[1751315267050,3.7028778,157.33,157.26,44.62]
[1751315267251,3.70518056,157.32,157.26,44.62]
[1751315267557,6.3569,157.29,157.26,6.3577]
[1751315268556,6.3572,157.28,157.26,6.3577]
[1751315268750,3.70518056,157.3,157.22,50.53042695]
[1751315269549,3.70518056,157.3,157.22,44.62]
[1751315270259,2.0868,157.31,157.23,3.70518056]
[1751315270455,6.3565,157.3,157.27,6.3573]
[1751315270859,6.3565,157.3,157.28,6.3571]
[1751315272350,8.4427,157.31,157.29,6.3566]
[1751315272551,8.4427,157.31,157.23,3.70518056]
[1751315273254,8.4427,157.31,157.28,6.3569]
[1751315273655,6.3563,157.3,157.28,6.3569]
[1751315277348,8.4428,157.31,157.29,6.3566]
[1751315277958,8.4428,157.31,157.28,6.357]
[1751315278161,6.3565,157.3,157.25,3.70518056]
[1751315278354,2.0868,157.31,157.23,3.70518056]
[1751315279560,6.3564,157.3,157.23,3.70518056]
[1751315279959,6.3564,157.3,157.27,6.3571]
[1751315280764,6.3564,157.3,157.28,6.3569]
[1751315280954,8.4429,157.31,157.23,3.70518056]
[1751315281363,6.3564,157.3,157.28,6.3568]
[1751315281768,2.0868,157.31,157.28,6.3568]
[1751315282062,8.4429,157.31,157.28,6.3568]
[1751315282565,2.0868,157.31,157.29,6.3565]
[1751315283067,6.3557,157.32,157.29,6.3565]
[1751315283567,6.3559,157.31,157.29,6.3565]
[1751315286471,6.3557,157.32,157.29,6.3565]
[1751315286968,6.3553,157.33,157.26,3.70422936]
[1751315287568,6.3553,157.33,157.31,6.3559]
[1751315287768,6.3549,157.34,157.28,3.70422936]
[1751315287968,46.8518,157.35,157.28,3.70422936]
[1751315288171,46.8518,157.35,157.31,6.3558]
[1751315288479,6.3547,157.34,157.31,6.3558]
[1751315288774,46.8518,157.35,157.31,6.3558]
[1751315288975,6.3552,157.33,157.31,6.3558]
[1751315289178,46.8518,157.35,157.23,5.91042695]
[1751315289179,3.70422936,157.34,157.26,3.70422936]
[1751315289480,3.70422936,157.34,157.24,3.70422936]
[1751315289481,6.3568,157.29,157.24,3.70422936]
[1751315289681,3.70422936,157.34,157.24,3.70422936]
[1751315290068,6.3564,157.3,157.24,3.70422936]
[1751315291783,3.70422936,157.32,157.24,3.70422936]
[1751315291983,3.70422936,157.32,157.26,6.3577]
[1751315292280,6.3569,157.29,157.26,6.3577]
[1751315292584,6.3569,157.29,157.24,3.70422936]
[1751315292885,6.356,157.31,157.28,6.3568]
[1751315293182,3.70422936,157.34,157.28,6.3568]
[1751315293383,6.3565,157.3,157.27,6.3573]
[1751315293773,6.3565,157.3,157.24,3.70422936]
[1751315294583,6.3565,157.3,157.27,6.3573]
[1751315295086,6.3568,157.29,157.27,6.3573]
[1751315296283,6.3565,157.3,157.27,6.3573]
[1751315296788,6.3565,157.3,157.28,6.357]
[1751315298090,6.3565,157.3,157.27,6.3573]
[1751315299288,3.70501418,157.32,157.26,6.3578]
[1751315299589,3.70501418,157.32,157.23,9.61544113]
[1751315299986,6.3568,157.29,157.26,6.3575]
[1751315300292,3.70501418,157.32,157.26,6.3575]
[1751315300792,6.3569,157.29,157.26,6.3575]
[1751315301795,3.70501418,157.32,157.26,6.3575]
[1751315303092,6.3573,157.28,157.25,6.3581]
[1751315303992,6.3573,157.28,157.26,6.3578]
[1751315304194,6.3569,157.29,157.26,6.3578]
[1751315305496,6.3564,157.3,157.27,6.3574]
[1751315306588,6.3567,157.29,157.27,6.3574]
[1751315308393,6.3564,157.3,157.27,6.3574]
[1751315308592,3.70501418,157.33,157.27,6.3574]
[1751315308898,6.3566,157.3,157.27,6.3574]
[1751315310598,6.3566,157.3,157.28,6.3571]
[1751315311395,6.3566,157.3,157.27,6.3573]
[1751315316304,3.70501418,157.31,157.25,5.91042695]
[1751315316499,3.70501418,157.29,157.24,5.91042695]
[1751315316805,6.3569,157.29,157.24,5.91042695]
[1751315317303,48.28501418,157.31,157.25,6.3581]
[1751315317505,48.28501418,157.31,157.24,5.91042695]
[1751315317901,6.3577,157.27,157.25,6.3583]
[1751315319208,6.3581,157.26,157.24,12.26892695]
[1751315319403,6.3581,157.26,157.22,56.20558345]
[1751315319404,3.70501418,157.29,157.22,50.53042695]
[1751315319601,3.70501418,157.29,157.23,5.91042695]
[1751315319798,3.70501418,157.29,157.22,12.26982695]
[1751315320300,3.70501418,157.27,157.2,6.36]
[1751315320506,2.1837,157.26,157.2,6.36]
[1751315321003,6.3595,157.23,157.2,6.36]
[1751315321602,6.3596,157.22,157.2,6.36]
[1751315322004,6.3596,157.22,157.19,6.3604]
[1751315322205,6.3596,157.22,157.2,5.28636116]
[1751315322511,6.3596,157.22,157.21,5.28636116]
[1751315326613,3.70501418,157.25,157.21,11.64606116]
[1751315326614,6.359,157.24,157.21,11.64606116]
[1751315326818,49.0158,157.26,157.22,5.27907544]
[1751315327011,44.58,157.26,157.19,9.61544113]
[1751315327314,44.58,157.26,157.2,5.27867391]
[1751315327508,50.9382,157.26,157.23,6.3589]
[1751315327909,44.58,157.26,157.23,6.3589]
[1751315329415,44.58,157.26,157.22,6.3594]
[1751315330015,6.3589,157.24,157.22,6.3594]
[1751315330510,48.28686629,157.26,157.18,44.58]
[1751315330711,48.28686629,157.26,157.19,5.29644]
[1751315330911,48.28686629,157.26,157.2,5.29644]
[1751315331113,6.3595,157.22,157.2,6.3601]
[1751315331919,6.3595,157.22,157.19,6.3605]
[1751315332119,6.3595,157.22,157.2,5.29544991]
[1751315332327,6.3595,157.22,157.18,44.58]
[1751315332519,6.3595,157.22,157.19,11.65541146]
[1751315332715,6.3595,157.22,157.2,5.29501146]
[1751315333017,6.3595,157.22,157.19,6.3603]
[1751315333218,6.3595,157.22,157.2,5.29501146]
[1751315333415,6.3595,157.22,157.19,6.3603]
[1751315334114,6.3601,157.21,157.19,6.3603]
[1751315334522,6.3601,157.21,157.18,50.941]
[1751315334722,6.3601,157.21,157.19,5.28646441]
[1751315335021,6.3601,157.21,157.18,50.941]
[1751315335221,6.3601,157.21,157.19,11.64716441]
[1751315335422,6.3597,157.22,157.19,6.3607]
[1751315336525,6.36,157.21,157.19,6.3607]
[1751315337426,6.3593,157.23,157.18,48.28686629]
[1751315337625,6.3593,157.23,157.19,5.29257637]
[1751315337923,6.3593,157.23,157.2,6.36]
[1751315338119,6.3595,157.22,157.2,6.36]
[1751315338422,8.04056629,157.25,157.18,44.58]
[1751315338623,8.04056629,157.25,157.19,5.29249471]
[1751315338825,4.3337,157.25,157.19,6.3605]
[1751315339023,8.04056629,157.25,157.19,6.3605]
[1751315339326,6.3598,157.22,157.19,6.3605]
[1751315342227,6.3598,157.22,157.2,6.3603]
[1751315342428,6.3598,157.22,157.18,44.58]
[1751315342624,6.3598,157.22,157.19,5.29192338]
[1751315342827,6.3598,157.22,157.19,6.3605]
[1751315345430,6.3593,157.23,157.2,6.3603]
[1751315345928,8.04056629,157.25,157.2,6.3603]
[1751315346333,6.3597,157.22,157.19,6.3605]
[1751315346632,4.3337,157.25,157.18,44.58]
[1751315346929,6.3595,157.23,157.2,6.3601]
[1751315347327,6.3599,157.22,157.19,6.3605]
[1751315348532,6.36,157.21,157.19,6.3605]
[1751315349832,6.3597,157.22,157.19,6.3605]
[1751315350030,6.3597,157.22,157.2,6.3603]
[1751315351032,6.3597,157.22,157.19,6.3605]
[1751315351230,6.3597,157.22,157.2,5.28934503]
[1751315351431,6.3597,157.22,157.18,44.58]
[1751315351731,6.3597,157.22,157.19,5.29010287]
[1751315351930,6.3597,157.22,157.2,5.29010287]
[1751315352230,6.3597,157.22,157.19,6.3604]
[1751315352432,6.3597,157.22,157.2,5.29082416]
[1751315352632,6.3597,157.22,157.19,6.3604]
[1751315352831,6.3597,157.22,157.2,5.2949531]
[1751315353029,6.3597,157.22,157.19,6.3604]
[1751315353230,6.3597,157.22,157.2,5.2949531]
[1751315353431,6.3599,157.21,157.19,6.3604]
[1751315353631,6.3599,157.21,157.2,5.29578069]
[1751315354930,6.3605,157.2,157.18,53.31441083]
[1751315355130,6.3605,157.2,157.19,5.2971264]
[1751315357739,6.3612,157.18,157.15,2.37351083]
[1751315357938,6.3612,157.18,157.16,5.29949247]
[1751315358142,6.3612,157.18,157.15,2.37351083]
[1751315358143,6.3612,157.18,157.17,5.29949247]
[1751315360136,6.3619,157.16,157.15,5.91042695]
[1751315360339,48.18999275,157.16,157.06,7.88056927]
[1751315360542,44.48,157.16,157.02,11.59056202]
[1751315360740,3.70999275,157.12,157.04,3.70999275]
[1751315360941,6.3644,157.1,157.06,6.3657]
[1751315361140,3.70999275,157.12,157.04,3.70999275]
[1751315361342,3.70999275,157.11,157.04,6.3665]
[1751315361646,3.70999275,157.11,157.03,3.70999275]
[1751315362040,6.365,157.09,157.04,6.3668]
[1751315362235,52.386803,157.16,157.02,44.48]
[1751315362443,44.48,157.16,157.03,3.70999275]
[1751315362637,19.45208988,157.23,157.09,3.70999275]
[1751315362638,11.61679575,157.18,157.09,3.70999275]
[1751315362844,3.70999275,157.18,157.09,3.70999275]
[1751315363043,7.906803,157.25,157.13,3.70999275]
[1751315363351,3.70999275,157.19,157.13,44.48]
[1751315363546,10.07079275,157.19,157.15,6.3623]
[1751315364252,6.3614,157.18,157.13,44.48]
[1751315365048,6.3614,157.18,157.15,6.3621]
[1751315365750,10.07089275,157.19,157.15,6.3621]
[1751315366550,10.07089275,157.19,157.16,6.3617]
[1751315367050,3.70999275,157.19,157.13,44.48]
[1751315367246,44.48,157.22,157.13,44.48]
[1751315367247,3.70999275,157.21,157.13,44.48]
[1751315367856,6.3604,157.2,157.17,6.3613]
[1751315368251,6.3604,157.2,157.13,44.48]
[1751315368252,6.3604,157.2,157.18,6.3611]
[1751315368747,6.36,157.21,157.18,6.3611]
[1751315368946,6.36,157.21,157.19,6.3607]
[1751315369146,6.36,157.21,157.13,44.48]
[1751315369453,6.36,157.21,157.18,6.3611]
[1751315370352,6.3604,157.2,157.17,6.3614]
[1751315372253,6.3604,157.2,157.13,44.48]
[1751315373154,6.3604,157.2,157.16,6.3616]
[1751315374352,6.3607,157.19,157.16,6.3616]
[1751315377653,3.71009823,157.2,157.13,44.48]
[1751315377855,3.71182841,157.15,157.13,44.48]
[1751315378350,3.71182841,157.15,157.12,44.48]
[1751315379452,3.71182841,157.13,157.11,44.48]
[1751315379855,6.364,157.12,157.11,44.48]
[1751315381057,6.364,157.12,157.1,44.5]
[1751315381256,6.364,157.12,157.08,6.3648]
[1751315381458,6.364,157.12,157.09,50.8647]
[1751315381650,6.364,157.12,157.09,6.3647]
[1751315381847,6.364,157.12,157.1,44.5]
[1751315382252,6.364,157.12,157.09,6.3647]
[1751315382455,6.364,157.12,157.1,44.5]
[1751315383062,6.364,157.12,157.09,6.3647]
[1751315383261,6.364,157.12,157.11,44.5]
[1751315383758,6.364,157.12,157.09,6.3647]
[1751315383960,6.364,157.12,157.1,44.5]
[1751315384262,6.364,157.12,157.09,6.3647]
[1751315384655,6.364,157.12,157.1,44.5]
[1751315385060,6.364,157.12,157.1,50.8644]
[1751315386562,3.71310774,157.14,157.11,6.3638]
[1751315386762,3.71310774,157.16,157.11,6.3638]
[1751315387452,3.71310774,157.16,157.12,44.5]
[1751315387863,6.363,157.14,157.11,6.3638]
[1751315388055,6.363,157.14,157.12,44.48]
[1751315388558,6.3632,157.13,157.12,44.48]
[1751315390964,6.3632,157.13,157.1,6.3642]
[1751315391165,6.3632,157.13,157.11,44.48]
[1751315391665,6.3632,157.13,157.1,6.3642]
[1751315391864,6.3632,157.13,157.11,44.48]
[1751315393769,6.3632,157.13,157.1,6.3642]
[1751315393970,6.3629,157.14,157.11,44.48]
[1751315394170,3.71310774,157.17,157.11,44.48]
[1751315394471,6.3621,157.16,157.13,6.3628]
[1751315395069,6.3617,157.17,157.14,6.3625]
[1751315395266,3.71310774,157.19,157.14,6.3625]
[1751315395666,6.3622,157.16,157.11,48.9572]
[1751315395859,3.71310774,157.18,157.11,48.9572]
[1751315396064,4.2695,157.22,157.11,48.9572]
[1751315396265,6.3618,157.17,157.14,6.3627]
[1751315396768,6.3613,157.18,157.11,52.67030774]
[1751315397171,6.3613,157.18,157.15,6.3621]
[1751315398871,6.3613,157.18,157.15,50.8421]
[1751315400271,3.71310774,157.2,157.15,44.48]
[1751315400573,6.3616,157.17,157.15,44.48]
[1751315402274,6.3613,157.18,157.15,50.8422]
[1751315402476,3.71310774,157.21,157.15,44.48]
[1751315403382,3.71310774,157.23,157.15,44.48]
[1751315403876,6.3602,157.21,157.18,6.3611]
[1751315404076,3.71310774,157.23,157.18,6.3611]
[1751315404674,6.3602,157.21,157.18,6.3611]
[1751315405079,6.3593,157.23,157.16,3.71310774]
[1751315405376,7.906803,157.27,157.18,3.71310774]
[1751315405579,6.3589,157.24,157.18,3.71310774]
[1751315405775,3.71310774,157.26,157.17,549.82]
[1751315406281,6.3594,157.23,157.2,6.3601]
[1751315406481,3.71310774,157.26,157.21,44.46]
[1751315406779,3.71310774,157.26,157.17,549.82]
[1751315406780,6.3591,157.24,157.17,549.82]
[1751315407082,3.71310774,157.26,157.18,44.46]
[1751315407583,6.3592,157.23,157.2,6.3601]
[1751315408282,6.3595,157.22,157.21,44.46]
[1751315408579,6.7032,157.29,157.21,44.46]
[1751315408787,6.3587,157.25,157.22,6.3593]
[1751315409786,6.3587,157.25,157.23,6.3591]
[1751315411181,3.71310774,157.28,157.21,44.46]
[1751315411182,6.3579,157.27,157.24,6.3586]
[1751315412480,6.3579,157.26,157.23,6.3589]
[1751315413084,3.71310774,157.28,157.24,6.3587]
[1751315414080,6.3578,157.27,157.24,6.3587]
[1751315415390,6.358,157.26,157.24,6.3587]
[1751315415784,3.71310774,157.28,157.24,6.3587]
[1751315416087,6.3578,157.27,157.24,6.3587]
[1751315417786,6.3578,157.27,157.25,6.3583]
[1751315417985,6.3573,157.28,157.22,3.71310774]
[1751315419383,6.3573,157.28,157.25,6.358]
[1751315419589,6.3573,157.28,157.26,44.44]
[1751315420390,6.3575,157.27,157.26,44.44]
[1751315420591,88.04019774,157.31,157.26,44.44]
[1751315420992,6.3574,157.28,157.26,44.44]
[1751315421193,88.04019774,157.31,157.26,44.44]
[1751315421495,6.3575,157.27,157.26,44.44]
[1751315426490,6.3573,157.28,157.26,44.44]
[1751315427696,6.3575,157.27,157.26,44.44]
[1751315431301,6.3575,157.27,157.24,6.3585]
[1751315431496,6.3575,157.27,157.24,50.7785]
[1751315431802,88.04019774,157.31,157.24,50.7785]
[1751315432102,6.3577,157.27,157.24,50.7785]
[1751315432301,6.3577,157.27,157.25,6.3583]
[1751315436508,3.71310774,157.29,157.24,44.42]
[1751315437803,3.71310774,157.29,157.24,50.7787]
[1751315438502,6.3578,157.27,157.24,50.7787]
[1751315441409,6.3578,157.27,157.24,44.42]
[1751315441809,3.71310774,157.29,157.24,44.42]
[1751315442009,88.04019774,157.31,157.24,44.42]
[1751315442410,6.357,157.29,157.26,6.3577]
[1751315443409,6.3571,157.28,157.26,6.3577]
[1751315449017,6.3571,157.28,157.25,6.3581]
[1751315449911,3.71310774,157.29,157.24,44.42]
[1751315450621,9.61822331,157.29,157.24,44.42]
[1751315451520,6.3579,157.26,157.24,50.7786]
[1751315454122,6.3577,157.27,157.24,50.7786]
[1751315454516,6.3577,157.27,157.25,6.3583]
[1751315454812,12.26241557,157.28,157.25,6.3583]
[1751315455121,6.3573,157.28,157.25,6.3583]
[1751315455524,6.3575,157.27,157.25,6.3583]
[1751315457520,6.3575,157.27,157.24,53.15002658]
[1751315457820,6.3575,157.27,157.24,50.7785]
[1751315458022,8.72902658,157.27,157.24,50.7785]
[1751315460228,6.3575,157.27,157.24,50.7785]
[1751315461031,6.3575,157.27,157.25,6.3582]
[1751315462627,14.63394215,157.28,157.26,6.3579]
[1751315463622,14.63394215,157.28,157.25,6.3581]
[1751315463825,2.37152658,157.26,157.24,44.42]
[1751315464229,8.72962658,157.26,157.24,44.42]
[1751315464926,8.72962658,157.26,157.23,6.3588]
[1751315465631,6.3583,157.25,157.23,6.3588]
[1751315466831,6.3581,157.26,157.23,6.3588]
[1751315467928,3.70645187,157.27,157.22,44.4]
[1751315468131,9.61156744,157.27,157.22,44.4]
[1751315468526,6.3588,157.24,157.22,44.4]
[1751315471839,6.3591,157.23,157.22,44.4]
[1751315476046,6.359,157.24,157.22,44.4]
[1751315476947,3.70645187,157.27,157.22,44.4]
[1751315477443,6.3577,157.27,157.24,6.3587]
[1751315478244,6.358,157.26,157.24,6.3587]
[1751315479241,3.7095153,157.25,157.18,5.90099737]
[1751315479437,3.7095153,157.23,157.16,5.90099737]
[1751315479638,6.3599,157.22,157.18,6.3611]
[1751315479843,3.7095153,157.23,157.18,6.3611]
[1751315480244,6.36,157.21,157.19,6.3607]
[1751315480447,3.7095153,157.23,157.19,6.3607]
[1751315481348,5.94858401,157.24,157.15,50.26099737]
[1751315481349,5.94858401,157.24,157.18,3.7095153]
[1751315481548,9.65809931,157.25,157.18,3.7095153]
[1751315481938,6.3589,157.24,157.21,6.3598]
[1751315483349,6.3594,157.23,157.2,6.3601]
[1751315484150,6.3595,157.22,157.2,6.3601]
[1751315484449,3.7095153,157.23,157.15,50.26099737]
[1751315484650,6.3606,157.2,157.15,44.36]
[1751315485345,6.3606,157.2,157.17,6.3612]
[1751315485746,3.7095153,157.21,157.15,50.7222]
[1751315486149,3.7095153,157.21,157.15,44.36]
[1751315486351,6.361,157.19,157.15,44.36]
[1751315486548,6.361,157.19,157.16,6.3617]
[1751315488556,6.361,157.19,157.17,6.3615]
[1751315488853,6.361,157.19,157.15,44.36]
[1751315489148,6.361,157.19,157.16,6.3617]
[1751315491255,6.361,157.19,157.17,6.3615]
[1751315494360,6.3605,157.2,157.18,6.3611]
[1751315494569,6.3605,157.2,157.15,44.36]
[1751315494861,3.7095153,157.21,157.15,44.36]
[1751315495061,6.3609,157.19,157.16,6.3616]
[1751315495765,6.3605,157.2,157.17,6.3615]
[1751315496462,6.3607,157.19,157.17,6.3615]
[1751315496758,3.7095153,157.21,157.17,6.3615]
[1751315497262,6.3606,157.2,157.17,6.3615]
[1751315497457,3.7095153,157.23,157.16,3.7095153]
[1751315497862,3.7095153,157.23,157.15,44.36]
[1751315498067,3.7095153,157.23,157.15,48.0695153]
[1751315498566,6.3601,157.21,157.18,6.3611]
[1751315498969,3.7095153,157.24,157.15,48.0695153]
[1751315499267,6.3597,157.22,157.19,6.3605]
[1751315500168,6.36,157.21,157.19,6.3605]
[1751315500768,6.36,157.21,157.18,6.361]
[1751315500970,3.7095153,157.24,157.18,6.361]
[1751315501459,6.3604,157.2,157.17,6.3613]
[1751315503473,6.3608,157.19,157.16,6.3618]
[1751315506071,6.3612,157.18,157.16,6.3618]
[1751315506370,5.94858401,157.25,157.17,6.3615]
[1751315506570,3.7095153,157.23,157.17,6.3615]
[1751315506971,3.7095153,157.23,157.16,6.3618]
[1751315507173,5.94858401,157.24,157.15,44.36]
[1751315507174,3.7095153,157.21,157.15,44.36]
[1751315507369,3.7095153,157.21,157.11,44.38]
[1751315507370,3.7095153,157.19,157.11,44.38]
[1751315507574,6.363,157.14,157.11,44.38]
[1751315507874,3.7095153,157.16,157.11,44.38]
[1751315508676,6.3626,157.15,157.12,6.3635]
[1751315508872,3.7095153,157.16,157.12,6.3635]
[1751315509073,6.3636,157.12,157.11,44.38]
[1751315509366,3.7095153,157.16,157.11,44.38]
[1751315510371,6.3634,157.13,157.11,44.38]
[1751315510969,6.3636,157.12,157.11,44.38]
[1751315512269,6.3633,157.13,157.11,44.38]
[1751315513170,2.09,157.17,157.11,44.38]
[1751315513371,3.7095153,157.19,157.11,44.38]
[1751315513876,6.3617,157.17,157.13,6.3628]
[1751315514072,3.7095153,157.19,157.13,6.3628]
[1751315514573,6.3622,157.16,157.13,6.3628]
[1751315516474,6.3622,157.16,157.14,6.3627]
[1751315516773,6.3617,157.17,157.14,6.3627]
[1751315517068,3.7095153,157.19,157.15,6.3621]
[1751315517275,6.3612,157.18,157.15,6.3621]
[1751315517865,6.3616,157.17,157.15,6.3621]
[1751315518071,6.3616,157.17,157.14,6.3626]
[1751315518770,6.3616,157.17,157.15,6.3623]
[1751315518971,6.3616,157.17,157.11,52.4081153]
[1751315519167,6.3616,157.17,157.13,3.7095153]
[1751315519371,6.3616,157.17,157.14,6.3624]
[1751315521680,6.3616,157.17,157.15,6.3623]
[1751315521981,6.3616,157.17,157.13,3.7095153]
[1751315522282,6.3616,157.17,157.15,6.3623]
[1751315523881,4.3056,157.2,157.13,3.7095153]
[1751315524378,6.3614,157.18,157.15,6.3621]
[1751315524780,4.3056,157.2,157.15,6.3621]
[1751315525080,6.3619,157.17,157.14,6.3626]
[1751315525275,4.3056,157.2,157.13,3.7095153]
[1751315525482,4.3056,157.2,157.13,6.3629]
[1751315525483,6.3622,157.16,157.13,6.3629]
[1751315525682,6.3622,157.16,157.11,48.6986]
[1751315526185,6.3626,157.15,157.12,6.3635]
[1751315527074,6.3628,157.14,157.12,6.3635]
[1751315527482,6.3628,157.14,157.11,55.0624]
[1751315528685,6.3628,157.14,157.12,6.3635]
[1751315531388,6.3625,157.15,157.12,6.3635]
[1751315531892,6.3621,157.16,157.11,52.4081153]
[1751315532386,6.3621,157.16,157.13,6.3628]
[1751315533488,6.3617,157.17,157.14,6.3627]
[1751315533981,8.0151153,157.2,157.14,6.3627]
[1751315534792,6.3622,157.16,157.14,6.3627]
[1751315534986,3.7095153,157.18,157.11,44.38]
[1751315535393,6.363,157.14,157.11,50.7438]
[1751315535982,3.7095153,157.16,157.07,44.34]
[1751315536186,3.7095153,157.14,157.06,6.3558]
[1751315536481,3.7095153,157.14,157.06,50.6958]
[1751315536685,6.3642,157.11,157.08,6.365]
[1751315537093,3.7095153,157.14,157.08,6.365]
[1751315538189,6.3644,157.1,157.08,6.365]
[1751315538588,3.7095153,157.14,157.08,6.365]
[1751315538890,3.7095153,157.14,157.09,6.3648]
[1751315539295,6.3638,157.12,157.09,6.3648]
[1751315539593,57.0402,157.21,157.09,3.7095153]
[1751315539795,3.7095153,157.18,157.09,3.7095153]
[1751315539996,3.7095153,157.18,157.11,6.3638]
[1751315540592,6.3628,157.14,157.11,6.3638]
[1751315542295,3.7095153,157.16,157.11,6.3638]
[1751315542496,3.7095153,157.16,157.1,6.3642]
[1751315542896,6.3634,157.13,157.1,6.3642]
[1751315543998,6.364,157.11,157.07,44.36]
[1751315544398,3.7095153,157.15,157.07,44.36]
[1751315544697,6.3637,157.12,157.09,6.3646]
[1751315544892,3.7095153,157.15,157.09,6.3646]
[1751315545097,3.7095153,157.15,157.07,44.36]
[1751315545398,3.7095153,157.15,157.08,6.3649]
[1751315545995,6.3638,157.12,157.08,6.3649]
[1751315546196,6.3638,157.12,157.09,6.3647]
[1751315547200,6.364,157.11,157.08,6.365]
[1751315547399,3.7095153,157.15,157.07,44.36]
[1751315547794,6.3646,157.1,157.07,50.7254]
[1751315547996,6.3646,157.1,157.06,10.0653153]
[1751315548198,6.3648,157.09,157.06,54.3952153]
[1751315548393,6.3648,157.09,157.06,48.0295153]
[1751315548600,3.7095153,157.13,157.06,48.0295153]
[1751315548800,6.3646,157.1,157.06,48.0295153]
[1751315548996,3.7095153,157.13,157.06,48.0295153]
[1751315549196,3.7095153,157.13,157.06,44.32]
[1751315549396,6.3646,157.1,157.07,6.3655]
[1751315549601,6.3646,157.1,157.06,44.32]
[1751315550000,6.3646,157.1,157.06,44.34]
[1751315550700,6.3646,157.1,157.08,6.3651]
[1751315551802,6.3642,157.11,157.08,6.3651]